Cogmind - Beta 15 @@@ ROGUE MODE // 2025.05.22 @ 18:51:03 Player: Minty Result: Destroyed by YK-4EG(z) with Makeshift Sword Performance ------------- Evolutions (1) 500 Regions Visited (4) 800 Robots Destroyed (45) 225 Value Destroyed (892) 892 Prototype IDs (1) 20 Alien Tech Used (0) 0 Bonus (-22) -22 TOTAL SCORE: 2415 Bonus ------- Friendly Fire -22 Cogmind --------- Core Integrity 0/400 Matter 38/300 Energy 170/170 System Corruption 0% Temperature Cool (0) Movement Treading (170) Location -7/Zion Parts ------- > --- POWER (1) -------- Makeshift Power Source > --- PROPULSION (2) --- Armored Treads Armored Treads > --- UTILITY (3) ------ Makeshift Microdissipator Network Medium Storage Unit Makeshift Light Armor Plating > --- WEAPON (3) ------- Phasing Sabre Phasing Sabre > --- INVENTORY (10) --- VTOL Module VTOL Module VTOL Module Hacking Suite Hacking Suite Hacking Suite Hacking Suite Barrage Gun Grenade Launcher Peak State ------------ > --- POWER ------------ Makeshift Power Source > --- PROPULSION ------- Armored Treads Armored Treads > --- UTILITY ---------- Makeshift Microdissipator Network Medium Storage Unit Makeshift Light Armor Plating > --- WEAPON ----------- Grenade Launcher Phasing Sabre Phasing Sabre > --- INVENTORY -------- VTOL Module VTOL Module VTOL Module Hacking Suite Hacking Suite Hacking Suite Hacking Suite Barrage Gun [Rating: 34] Favorites ----------- Power Ion Engine Engine Ion Engine Propulsion Armored Treads Treads Armored Treads Leg Aluminum Leg Utility Medium Storage Unit Device Tractor Beam Storage Medium Storage Unit Protection Makeshift Light Armor Plating Weapon Flak Cannon Energy Gun EM Pulse Gun Ballistic Gun Assault Rifle Ballistic Cannon Flak Cannon Launcher Grenade Launcher Slashing Weapon Phasing Sabre Build | -11 -10 -9 -9 -7 ------- Run | Yrd Mat Mat Min Zio Slots Evolved 2 | . . 2 . . Power . | . . . . . Propulsion . | . . . . . Utility 1 | . . 1 . . Weapon 1 | . . 1 . . Parts Attached 31 | . 9 14 . 8 Power 3 | . 1 1 . 1 Engine 3 | . 1 1 . 1 Core . | . . . . . Reactor . | . . . . . Propulsion 6 | . 2 4 . . Treads 4 | . 2 2 . . Leg 2 | . . 2 . . Wheel . | . . . . . Hover . | . . . . . Flight . | . . . . . Utility 8 | . 3 3 . 2 Device 4 | . 2 1 . 1 Storage 2 | . 1 1 . . Processor . | . . . . . Hackware . | . . . . . Protection 2 | . . 1 . 1 Artifact . | . . . . . Weapon 14 | . 3 6 . 5 Energy Gun 4 | . 3 1 . . Energy Cannon . | . . . . . Ballistic Gun 3 | . . . . 3 Ballistic Cannon 4 | . . 4 . . Launcher 1 | . . 1 . . Special Weapon . | . . . . . Impact Weapon . | . . . . . Slashing Weapon 2 | . . . . 2 Piercing Weapon . | . . . . . Special Melee Weapon . | . . . . . Unidentified Prototypes 1 | . . 1 . . Parts Lost 10 | . 5 1 . 4 Power 2 | . 1 . . 1 Propulsion 2 | . 2 . . . Utility 3 | . 1 1 . 1 Weapon 3 | . 1 . . 2 Highest Loss Streak 5 | . 5 1 . 4 To Critical Strikes . | . . . . . Average Backups 9 | . 8 9 10 9 Power . | . . . . . Propulsion 3 | . 3 3 5 4 Utility 3 | . 1 3 4 4 Weapon 1 | . 2 2 1 1 Tool/Special . | . . . . . Unused Backups 20 | . 6 5 . 9 Power 2 | . 2 . . . Propulsion 6 | . . 1 . 5 Utility 6 | . 2 . . 4 Weapon 6 | . 2 4 . . Tool/Special . | . . . . . Average Slot Usage (%) 92 | . 85 88 88 97 Engine 9 | . 8 7 11 11 Treads 17 | . 5 20 22 21 Leg 4 | . 19 1 . . Device 9 | . 9 7 11 11 Storage 11 | . 14 11 11 11 Protection 7 | . . 8 . 10 Energy Gun 2 | . 6 2 . . Ballistic Gun 6 | . 21 . . 5 Ballistic Cannon 20 | . . 29 33 24 Peak Build Rating 34 | . 7 21 20 34 Average Rating 18 | . 6 17 20 24 On Entrance 11 | 6 6 6 20 20 Naked Turns . | . . . . . Heaviest Build 38 | 12 19 35 34 38 Greatest Support 40 | 20 40 40 40 40 Greatest Overweight (x) 2 | . 2 1 . 1 Average Overweight (x) . | . . . . . Largest Inventory Capacity 25 | . 10 25 10 10 Average Capacity 9 | . 8 10 10 10 Most Carried 10 | . 10 10 10 10 Average Carried 9 | . 8 9 10 9 Final Capacity 10 | 8 10 10 10 10 Final Carried 10 | 6 10 10 10 9 Class Distribution -------------------- 60% | Tank 26% | Mutant 6% | Derelict-Tank Dominant Class ---------------- Mutant | -10/Materials Tank | -9/Materials Gunner | -9/Mines Tank | -7/Zion Resources | -11 -10 -9 -9 -7 ----------- Run | Yrd Mat Mat Min Zio Matter Collected 1341 | 197 210 558 . 376 Remotely 745 | . . 446 . 299 Salvage Created 1063 | . 395 438 . 230 Parts 84 | . 26 35 . 23 Haulers Intercepted 2 | . 1 1 . . Recyclers Shooed 2 | . . 2 . . Parts Field Recycled . | . . . . . Retrieved Matter . | . . . . . Parts Self-Destructed . | . . . . . Prevented . | . . . . . Kills | -11 -10 -9 -9 -7 ------- Run | Yrd Mat Mat Min Zio Combat Hostiles Destroyed 26 | . 8 16 . 2 Guns 9 | . 8 . . 1 Cannons 13 | . . 13 . . AOE 4 | . . 3 . 1 Classes Destroyed 9 | . 3 4 . 2 Builder 2 | . 1 1 . . Hauler 2 | . 1 1 . . Recycler 3 | . . 3 . . Operator 1 | . . 1 . . Swarmer 10 | . . 10 . . Grunt 12 | . 8 4 . . Sentry 2 | . . 2 . . Zionite 11 | . . . . 11 Tinkerer 1 | . . . . 1 Thug 2 | . . . . 2 Best Kill Streak 7 | . 5 5 . 7 Combat Bots Only 4 | . 4 4 . 1 Max Kills in Single Turn 3 | . 1 3 . 2 Gunslinging . | . . . . . Exploded 2 | . . 2 . 1 Melee . | . . . . . Uniques/NPCs Destroyed . | . . . . . Combat | -11 -10 -9 -9 -7 -------- Run | Yrd Mat Mat Min Zio Hostile Shots Fired 308 | . 64 115 . 129 Missed 94 | . 16 40 . 38 Hits 214 | . 48 75 . 91 Melee 11 | . . . . 11 Projectile 203 | . 48 75 . 80 Critical Strikes 5 | . . . . 5 Damage Taken 2945 | . 618 724 . 1603 Core 579 | . 144 102 . 333 Absorbed by Shields . | . . . . . Redirected to Shielding 50 | . . 50 . . Regen/Repaired (Parts) 688 | . . . . 688 Core Remaining (%) 71 | 100 42 . . . Volleys Fired 106 | . 40 42 . 24 Largest 3 | . 2 3 . 3 Hottest 111 | . 60 111 . 86 Shots Fired 234 | . 78 97 . 59 Gun 136 | . 78 8 . 50 Cannon 87 | . . 87 . . Launcher 11 | . . 2 . 9 Special . | . . . . . Kinetic 208 | . 71 87 . 50 Thermal . | . . . . . Explosive 11 | . . 2 . 9 Electromagnetic 15 | . 7 8 . . Robot Hit Streak 9 | . 7 9 . 8 Robot Miss Streak 14 | . 3 14 . 5 Penetration Max . | . . . . . Secondary Targets 5 | . 1 . . 4 Max Gunslinging Chain 1 | . 1 . . 1 Shots Hit Robots 166 | . 52 70 . 44 Core Hits 96 | . 21 55 . 20 Critical Kills 1 | . 1 . . . Critical Parts Destroyed . | . . . . . Critical Strikes 2 | . 1 . . 1 Destroy 1 | . 1 . . . Sever 1 | . . . . 1 Melee Attacks 12 | . . . . 12 Impact . | . . . . . Slashing 12 | . . . . 12 Piercing . | . . . . . Sneak Attacks . | . . . . . Combat Hostiles . | . . . . . Follow-up Attacks 3 | . . . . 3 Damage Inflicted 3315 | . 695 1360 . 1260 Guns 1354 | . 671 69 . 614 Cannons 1047 | . . 1047 . . Explosions 664 | . . 229 . 435 Melee 211 | . . . . 211 Ramming 39 | . 24 15 . . Kinetic 2289 | . 628 1047 . 614 Thermal 28 | . . 28 . . Explosive 636 | . . 201 . 435 Electromagnetic 112 | . 43 69 . . Impact . | . . . . . Slashing 211 | . . . . 211 Piercing . | . . . . . Highest Corruption . | . . . . . Average Corruption . | . . . . . Corruption Purged . | . . . . . Corruption Blocked . | . . . . . Overload Shots . | . . . . . Overflow Damage 15 | . . 13 . 2 Projectiles . | . . . . . Explosions 15 | . . 13 . 2 Melee . | . . . . . Knockbacks 18 | . . 18 . . Impact . | . . . . . Kinetic 17 | . . 17 . . Secondary 1 | . . 1 . . Self-Inflicted Damage 112 | . . 9 . 103 Shots 5 | . . 1 . 4 Rammed 5 | . 1 4 . . Targets Rammed 7 | . 3 4 . . Kicked 2 | . 2 . . . Crushed . | . . . . . Highest Temperature 302 | . 5 138 . 302 Average Temperature 67 | . 3 34 . 115 Received Heat Transfer 654 | . 354 90 . 210 Siege Activations . | . . . . . Martial Activations . | . . . . . Shielding Activations . | . . . . . Robots Disrupted . | . . . . . Combat Hostiles . | . . . . . Robots Corrupted . | . . . . . Combat Hostiles . | . . . . . Parts Fried 1 | . . 1 . . Impact Corruptions . | . . . . . Robots Melted . | . . . . . Combat Hostiles . | . . . . . Parts Melted 1 | . . . . 1 Heat Transferred 50 | . . 50 . . Parts Sabotaged . | . . . . . Parts Stolen . | . . . . . Parts Stripped . | . . . . . Power Chain Reactions 1 | . . 1 . . Alert | -11 -10 -9 -9 -7 ------- Run | Yrd Mat Mat Min Zio Maximum Alert Level . | . . . . . Low Security (%) 100 | . 100 100 100 . Level 1 . | . . . . . Level 2 . | . . . . . Level 3 . | . . . . . Level 4 . | . . . . . Level 5 . | . . . . . High Security . | . . . . . Max Security . | . . . . . Peak Influence 148 | . 114 148 54 . Initial 54 | . . 20 54 . Average 49 | . 45 51 54 . Influence Increases 716 | . 236 480 . . Destroy 0b10 Robot/C 480 | . 160 320 . . Destroy 0b10 Robot/NC 40 | . 10 30 . . Destroy Leader 114 | . 42 72 . . Successful Hack 11 | . 7 4 . . Disable Machine 15 | . 15 . . . Destroy Structure 11 | . 2 9 . . Lose Combat Pursuer 45 | . . 45 . . Influence Decreases 716 | . 188 388 86 54 Entered New Map 168 | . . 28 86 54 Time Decay 400 | . 138 262 . . Lost Part 60 | . 50 10 . . Purge Threat 88 | . . 88 . . Squads Dispatched 4 | . 2 2 . . Investigation 1 | . 1 . . . Extermination . | . . . . . Reinforcement 3 | . 1 2 . . Assault . | . . . . . Garrison . | . . . . . Intercept . | . . . . . Searches Triggered . | . . . . . Construction Impeded . | . . . . . Haulers Reinforced . | . . . . . Active Scanning Responses . | . . . . . Cargo Convoy Interrupts . | . . . . . Stealth | -11 -10 -9 -9 -7 --------- Run | Yrd Mat Mat Min Zio Distress Signals 4 | . 2 2 . . Communications Jammed . | . . . . . Distress Signals . | . . . . . Times Spotted 67 | . 18 30 . 19 Peak Tracking Total 6 | . 4 5 . 6 Tactical Retreats 9 | . 3 1 . 5 Traps | -11 -10 -9 -9 -7 ------- Run | Yrd Mat Mat Min Zio Traps Triggered 2 | . 2 . . . Indirectly . | . . . . . Trap Hack Attempts . | . . . . . Triggered . | . . . . . Disarmed . | . . . . . Reprogrammed . | . . . . . Reused . | . . . . . Traps Extracted . | . . . . . Installed . | . . . . . Triggered . | . . . . . Machines | -11 -10 -9 -9 -7 ---------- Run | Yrd Mat Mat Min Zio Machines Disabled 1 | . 1 . . . Max in Single Turn 1 | . 1 . . . Machines Repaired . | . . . . . Machines Dismantled . | . . . . . Machines Sabotaged . | . . . . . Overloaded Fab Kills . | . . . . . Hacking | -11 -10 -9 -9 -7 --------- Run | Yrd Mat Mat Min Zio Machines Accessed 3 | . 1 2 . . Terminals 3 | . 1 2 . . Fabricators . | . . . . . Repair Stations . | . . . . . Recycling Units . | . . . . . Scanalyzers . | . . . . . Garrison Access . | . . . . . Total Hacks 9 | . 2 7 . . Successful 4 | . 1 3 . . Failed 5 | . 1 4 . . Catastrophic 1 | . . 1 . . Database Lockouts . | . . . . . Manual . | . . . . . Terminals 9 | . 2 7 . . Fabricators . | . . . . . Repair Stations . | . . . . . Recycling Units . | . . . . . Scanalyzers . | . . . . . Garrison Access . | . . . . . Terminal Hacks 4 | . 1 3 . . Robot Analysis 1 | . . 1 . . Alert Level 1 | . . 1 . . Unreport Threat 1 | . . 1 . . Registered Components 1 | . 1 . . . Fabricator Hacks . | . . . . . Repair Station Hacks . | . . . . . Recycling Unit Hacks . | . . . . . Scanalyzer . | . . . . . Garrison Access Hacks . | . . . . . Unauthorized Hacks . | . . . . . Terminals . | . . . . . Fabricators . | . . . . . Repair Stations . | . . . . . Recycling Units . | . . . . . Scanalyzers . | . . . . . Garrison Access . | . . . . . Data Cores Recovered . | . . . . . Used . | . . . . . Hacking Detections 2 | . . 2 . . Full Trace Events . | . . . . . Feedback Events . | . . . . . Feedback Blocked . | . . . . . Robot Schematics Acquired 3 | . . . . 3 Robots Built . | . . . . . Authchips . | . . . . . Time . | . . . . . Total Robot Build Rating . | . . . . . Part Schematics Acquired 15 | . . . . 15 Parts Built . | . . . . . Authchips . | . . . . . Time . | . . . . . Total Part Build Rating . | . . . . . Parts Repaired . | . . . . . Time . | . . . . . Parts Recycled . | . . . . . Recycled Matter . | . . . . . Retrieved Matter . | . . . . . Retrieved Components . | . . . . . Parts Scanalyzed . | . . . . . Part Schematics Acquired . | . . . . . Parts Damaged . | . . . . . Bothacking | -11 -10 -9 -9 -7 ------------ Run | Yrd Mat Mat Min Zio Used RIF Installer . | . . . . . Robots Hacked . | . . . . . Non-combat . | . . . . . Combat . | . . . . . Robot Hacks Applied . | . . . . . Relay Couplers Released . | . . . . . Fabnet Peak Effective % . | . . . . . Robots Rewired . | . . . . . Allies Hacked . | . . . . . Hacks Repelled . | . . . . . Allies | -11 -10 -9 -9 -7 -------- Run | Yrd Mat Mat Min Zio Total Allies . | . . . . . Largest Group . | . . . . . Highest-Rated Group . | . . . . . Highest-Rated Ally . | . . . . . Total Orders . | . . . . . Ally Attacks . | . . . . . Total Damage . | . . . . . Kills . | . . . . . Allies Corrupted . | . . . . . Allies Melted . | . . . . . Intel | -11 -10 -9 -9 -7 ------- Run | Yrd Mat Mat Min Zio Active Infowar (turns) 270 | . 270 . . . ECM 270 | . 270 . . . Robot Analysis Total 1 | . . 1 . . Derelict Logs Recovered . | . . . . . Drone Launches . | . . . . . Drone Recoveries . | . . . . . Exploration | -11 -10 -9 -9 -7 ------------- Run | Yrd Mat Mat Min Zio Turns Passed 1938 | . 407 644 4 883 Spaces Moved 920 | 1 197 274 2 446 Core 21 | . 21 . . . Treads 749 | . 38 263 2 446 Legs 150 | 1 138 11 . . Wheels . | . . . . . Hover . | . . . . . Flight . | . . . . . Fastest Speed 120 | 120 120 130 170 170 Average Speed 160 | 120 130 164 170 170 Slowest Speed 250 | 120 160 240 170 250 Overloaded Moves . | . . . . . Propulsion Burnouts . | . . . . . Robots Hopped . | . . . . . Potential Cave-ins . | . . . . . Cave-ins Triggered . | . . . . . Exploration Rate (%) 23 | 2 41 23 2 48 Regions Visited 4 Branch Regions 2 Pre-discovered Areas 1 | . . . . 1 Known Exits Taken . | . . . . . Unknown Exits Taken 4 | 1 1 1 1 . Scrap Searched 3 | . . . . 3 Spaces Dug . | . . . . . Terrain Destroyed 18 | . . 9 . 9 Melee . | . . . . . Projectile 1 | . . . . 1 AOE 17 | . . 9 . 8 Terrain Rammed . | . . . . . Walls Destroyed . | . . . . . Machines Disabled . | . . . . . Actions | -11 -10 -9 -9 -7 --------- Run | Yrd Mat Mat Min Zio Total 1161 | . 266 385 3 507 Wait 29 | . 2 18 2 7 Move 916 | . 196 273 1 446 Hop . | . . . . . Pick Up 20 | . 6 12 . 2 Fast Attach 17 | . 8 5 . 4 Attach 6 | . 3 1 . 2 Detach 5 | . 4 . . 1 Swap 23 | . 1 13 . 9 Drop 23 | . 3 17 . 3 Fire 106 | . 40 42 . 24 Melee 9 | . . . . 9 Ram . | . . . . . Kick 2 | . 2 . . . Crush 5 | . 1 4 . . Escape Stasis . | . . . . . Rewire . | . . . . . Trap . | . . . . . Miscellaneous . | . . . . . Route ------- -11/Scrapyard -10/Materials -9/Materials -9/Mines -7/Zion History --------- Turn | Location | Event 1 | -11/Scrapyard | Discovered new exit (range 0) 1 | -11/Scrapyard | Entered Materials 288 | -10/Materials | Core integrity fell below 50% 316 | -10/Materials | Build established: Mutant 316 | -10/Materials | Lost 5 parts (1p2n1u1w) 384 | -10/Materials | Discovered new exit (range 10) 408 | -10/Materials | Entered another Materials area 408 | -9/Materials | Evolved 2 slots: Utility x1, Weapon x1 768 | -9/Materials | Build established: Tank 882 | -9/Materials | Discovered new exit (range 12) 1052 | -9/Materials | Entered Mines 1053 | -9/Mines | A Derelict revealed a hidden shortcut to a safe place 1056 | -9/Mines | Entered Zion 1310 | -7/Zion | Given A8's code to call for help 1388 | -7/Zion | Learned location of Warlord (-4) 1535 | -7/Zion | Visited the Megawrench Repair Shop 1535 | -7/Zion | Megawrench repaired 9 parts 1761 | -7/Zion | Attacked by Zionites 1803 | -7/Zion | Core integrity fell below 50% 1868 | -7/Zion | Lost 4 parts (1p1u2w) 1892 | -7/Zion | Core integrity fell below 20% 1939 | -7/Zion | Destroyed by YK-4EG(z) with Makeshift Sword Last Messages --------------- 01861_ GX-QHH(z) pulls a Mak. Laser out of the Twisted Machinery. 01869_ Acquired 37 matter. 01871_ The unstable cave ceiling collapses. UC-8YT(z) bursts out of the Twisted Machinery. 01883_ UC-8YT(z) pulls a Mak. Shrapnel Gun out of the Twisted Machinery. 01883_ Phasing Sabre follow-up attack on UC-8YT(z). 01887_ The unstable cave ceiling collapses. 01887_ Critical hit (Burn: +25). 01888_ AG-DV7(z) pulls a Mak. Shrapnel Gun out of the Twisted Machinery. 01888_ Phasing Sabre follow-up attack on GX-QHH(z). 01891_ Mak. Leg melted. 01891_ GX-QHH(z) destroyed. 01893_ Acquired 18 matter. 01898_ UC-8YT(z) destroyed. 01902_ AG-DV7(z) destroyed. 01912_ PL-TDH(z) pulls a Mak. Sword out of the Twisted Machinery. 01924_ PL-TDH(z) Mak. Leg severed. 01924_ Phasing Sabre follow-up attack on PL-TDH(z). 01924_ PL-TDH(z) destroyed. 01927_ Acquired 22 matter. Map ----- +----------------------------------------------------+ | ?????????????????????????????????????????????????? | | ?????????????????????????????????????????????????? | | ?????????????????????????????????????????????????? | | ?????????????????????????????????????????????????? | | ?????????????????????????????????????????????????? | | ?????#######?????????????????????????????????????? | | ?????#|" "]#?????????????????????????????????????? | | ?????#]== ]#????????????????###?##???????????????? | | ?????#]" " #????????##?###?##"##"###?????????????? | | ?????#"" ""#?????????"##"###"""""#"##???????????## | | ????### ###????#####""""""" " """"#?????????###* | | ????#"" # #??###"""""""""" """####??????#!= | | ????#""" #???#"""" """" """"""??????# | | ????##" ##??#""" "" """"####??## | | ???##"" #####"" "" ""#"""#??## | | ???#"""" #?#"" """ """""""#??# | | ???#"#" " ##?#"" """" """ ""##?# | | ???#"""" ####" """"""" "" """### | | ###"#"" # ###"""""""""" """"##"#" | | #""##"" #"""" #""""#""" "" """""""" | | #"""""" " """ ""#""" """ " | | """ """ "" "#""" """"" | | "" """ ""##" """"" """""" | | """" """ [ [ """""" """ ""##"" | | """" """ == //== z""" "" """#"" | | """ """" * = @ """" """" """""" | | " " != */< """" """"" """""" | | *= < """" | | =!* < | | * !! | | "##"### ! "" "" | | """""""""" ! """"""""""""""" """""" | | ""#""###"" "#"""""#"""#""" """""" | | ""#####?#"" ;"##########"#" "" "" | | ""##????#"" """######??????????"" "# | | """#????#""" ""###???????????????? "" | | #"##????##""""##??????????????????? ?"" """ | | """"?????##""##???????????????????????"""""" | | #""#??????####?????????????????????? """"" | | #""#????????????????????????????" "" | | ""#?????????????????????????????" | | "" """#????????????????????????????" " | | """ """????????????????????????????" "" | | """ ""#????????????????????????????? "# | | """ #"#?????????????????????????????? "" | | """ """?????????????????????????????? ????" | | "" ""#??????????????????????????????? ?????" | | "" ""#???????????????????????????????? ??????" | | """???????????????????????????????????????" | | "#????????????????????????????????????????" | +----------------------------------------------------+ Best States ------------- Heat Dissipation 28 Energy Generation 15 Energy Capacity 250 Matter Stores 289 Matter Capacity 300 Sight Range 16 Terrain Scan Density 10 ECM Strength 1 Armor Coverage 100 Weapon Shielding 33 Evasion (%) 55 Recoil Reduction 2 Item Schematics ----------------- Proton Cannon | -7/Zion | Archive Hvy. Ion Cannon | -7/Zion | Archive Proton Missile Launcher | -7/Zion | Archive Thermal Shield | -7/Zion | Archive Lrn. Proton Cannon | -7/Zion | Archive Imp. Cooling System | -7/Zion | Archive Enh. Optical Array | -7/Zion | Archive Kinecellerator | -7/Zion | Archive Focal Shield | -7/Zion | Archive Core Analyzer | -7/Zion | Archive Adv. Melee Analysis Suite | -7/Zion | Archive Weapon Cycler | -7/Zion | Archive Imp. Trap Scanner | -7/Zion | Archive Adv. Assault Cannon | -7/Zion | Archive Imp. Coolant Injector | -7/Zion | Archive Robot Schematics ------------------ R-06 Scavenger | -7/Zion | Archive G-47 Trooper | -7/Zion | Archive A-02 Transporter | -7/Zion | Archive Fabricated ------------ Nothing Repaired ---------- Nothing Alien Tech Used ----------------- None Achievements -------------- None Challenges ------------ None Game ------ Seed CoreContainmentRecalibrator Manual? 0 Play Time 00:20:53 Cumulative 1057.0 hours Start 2025.05.22 @ 18:22:18 End 2025.05.22 @ 18:51:03 Sessions 1 Manual Loads 0 Difficulty Rogue Special Mode None Game No. 1312 Rogue 1029 Adventurer 124 Explorer 159 Win Type - Total 47 Types 33/0/8/4/1/0/0/1/0/0 Lore% 91 Gallery% 86 Achievement% 80 Wizard Run 0 Options --------- Layout 0 ASCII 0 Keyboard 1 Movement Numpad Keybinds 0 Fullscreen 2 Font 18/X11 Map View 76x50 Zoom Use 0% Tactical HUD 1 Map Filters NONE Filters NONE Steam 1 RUN: a8e8d545-1716-4b07-95a1-39b4d4430f15